bitfinex/quotes_BTCUSD_20250726
["timestamp","ask_amount","ask_price","bid_price","bid_amount"]
[1753570171915,0.09421439,118230.0,118220.0,0.76711564]
[1753570172118,0.08575652,118230.0,118220.0,0.76711564]
[1753570172888,0.07729865,118230.0,118220.0,0.76711564]
[1753570173336,0.06045744,118230.0,118220.0,0.76711564]
[1753570174186,0.051,118230.0,118220.0,0.76711564]
[1753570174423,0.05845751,118230.0,118220.0,0.76711564]
[1753570174631,0.05945751,118230.0,118220.0,0.76711564]
[1753570175394,0.06791517,118230.0,118220.0,0.76711564]
[1753570175870,0.05945751,118230.0,118220.0,0.76711564]
[1753570178760,0.06791517,118230.0,118220.0,0.76711564]
[1753570178988,0.05945751,118230.0,118220.0,0.76711564]
[1753570179169,0.051,118230.0,118220.0,0.76711564]
[1753570180629,0.051,118230.0,118220.0,0.85159294]
[1753570182804,0.051,118230.0,118220.0,0.86000864]
[1753570184958,0.05,118230.0,118220.0,0.85159294]
[1753570185380,0.05,118230.0,118220.0,0.85259294]
[1753570185581,0.05,118230.0,118220.0,0.85359294]
[1753570194621,0.05,118230.0,118220.0,1.16997395]
[1753570194830,0.05,118230.0,118220.0,0.85359294]
[1753570201229,0.05,118230.0,118220.0,1.16997395]
[1753570206211,0.05,118230.0,118220.0,0.85359294]
[1753570210215,0.05,118230.0,118220.0,1.16997395]
[1753570211696,0.05,118230.0,118220.0,1.03989395]
[1753570211904,0.05,118230.0,118220.0,1.16937395]
[1753570221135,0.05,118230.0,118220.0,0.53661193]
[1753570221352,0.05,118230.0,118220.0,1.16937395]
[1753570239470,0.44260639,118230.0,118220.0,0.25565341]
[1753570239703,0.43414859,118230.0,118220.0,0.3174535]
[1753570239967,0.1262251,118230.0,118220.0,0.33437031]
[1753570240187,0.12622502,118230.0,118220.0,0.20501031]
[1753570240402,0.12622502,118230.0,118220.0,0.33437031]
[1753570240859,0.12622502,118230.0,118220.0,0.20501031]
[1753570241080,0.12622502,118230.0,118220.0,0.33437031]
[1753570241308,0.12622502,118230.0,118220.0,0.65075132]
[1753570241752,0.12622502,118230.0,118220.0,0.65720969]
[1753570241966,0.10931,118230.0,118220.0,0.65720969]
[1753570242373,0.12622495,118230.0,118220.0,0.65720969]
[1753570242560,0.12622495,118230.0,118220.0,0.52784969]
[1753570242744,0.12488495,118230.0,118220.0,0.65720969]
[1753570242946,0.12588495,118230.0,118220.0,0.65720969]
[1753570243145,0.13434261,118230.0,118220.0,0.65720969]
[1753570243580,0.14280041,118230.0,118220.0,0.65720969]
[1753570243759,0.13434261,118230.0,118220.0,0.65720969]
[1753570244116,0.13434261,118230.0,118220.0,0.52784969]
[1753570244331,0.14280041,118230.0,118220.0,0.65720969]
[1753570244555,0.14280048,118230.0,118220.0,0.64875139]
[1753570244774,0.14280041,118230.0,118220.0,0.65720983]
[1753570244994,0.14280041,118230.0,118220.0,0.64875103]
[1753570245211,0.14280034,118230.0,118220.0,0.65720933]
[1753570245666,0.15125821,118230.0,118220.0,0.51939103]
[1753570245898,0.15125814,118230.0,118220.0,0.64875103]
[1753570246132,0.15125814,118230.0,118220.0,0.52784933]
[1753570246395,0.15125814,118230.0,118220.0,0.64875103]
[1753570246612,0.15125814,118230.0,118220.0,0.65720933]
[1753570246825,0.15125914,118230.0,118220.0,0.63183451]
[1753570247070,0.14280113,118230.0,118220.0,0.64029302]
[1753570247336,0.14280113,118230.0,118220.0,0.64875146]
[1753570247569,0.14280113,118230.0,118220.0,0.3154535]
[1753570247798,0.14280113,118230.0,118220.0,0.64029302]
[1753570248019,0.14280113,118230.0,118220.0,0.63183451]
[1753570248241,0.14280113,118230.0,118220.0,0.64029302]
[1753570248593,0.14280113,118230.0,118220.0,0.64875146]
[1753570248794,0.14280113,118230.0,118220.0,0.64029302]
[1753570249023,0.14280113,118230.0,118220.0,0.63183451]
[1753570249260,0.14280113,118230.0,118220.0,0.64029302]
[1753570249402,0.14280113,118230.0,118220.0,0.64025302]
[1753570249835,0.14280113,118230.0,118220.0,0.64871146]
[1753570250703,0.14280113,118230.0,118220.0,0.69286688]
[1753570251367,0.14280113,118230.0,118220.0,0.67594993]
[1753570251572,0.30350563,118230.0,118220.0,0.29849611]
[1753570251900,0.30350563,118230.0,118220.0,0.61487712]
[1753570252108,0.30350563,118230.0,118220.0,0.62333592]
[1753570252490,0.30350563,118230.0,118220.0,0.50247465]
[1753570252688,0.30350563,118230.0,118220.0,0.63179465]
[1753570252913,0.30350563,118230.0,118220.0,0.62333592]
[1753570253111,0.30350563,118230.0,118220.0,0.63179465]
[1753570253736,0.30350563,118230.0,118220.0,0.50247465]
[1753570253992,0.30350563,118230.0,118220.0,0.62333592]
[1753570254424,0.29504783,118230.0,118220.0,0.61487712]
[1753570255042,0.29504783,118230.0,118220.0,0.62333585]
[1753570255767,0.29504783,118230.0,118220.0,0.62333592]
[1753570255919,0.29504783,118230.0,118220.0,0.61487712]
[1753570256128,0.29504783,118230.0,118220.0,0.62333592]
[1753570256662,0.29504783,118230.0,118220.0,0.61487712]
[1753570257063,0.29504783,118230.0,118220.0,0.62333592]
[1753570257281,0.29504783,118230.0,118220.0,0.61487712]
[1753570258284,0.28658989,118230.0,118220.0,0.61487712]
[1753570260320,0.28658989,118230.0,118220.0,0.62333592]
[1753570260741,0.28658989,118230.0,118220.0,0.61487712]
[1753570260947,0.30403891,118230.0,118220.0,0.61487712]
[1753570261148,0.30403891,118230.0,118220.0,0.62333578]
[1753570261580,0.30403891,118230.0,118220.0,0.65039578]
[1753570261796,0.28783891,118230.0,118220.0,0.65039578]
[1753570262256,0.26394891,118230.0,118220.0,0.65039578]
[1753570262673,0.24804891,118230.0,118220.0,0.65039578]
[1753570262986,0.24804891,118230.0,118220.0,0.65039585]
[1753570263192,0.24804891,118230.0,118220.0,0.65239585]
[1753570263607,0.24804891,118230.0,118220.0,0.66085451]
[1753570264713,0.25650678,118230.0,118220.0,0.6693131]
[1753570264922,0.08734498,118230.0,118220.0,0.69561993]
[1753570265363,0.08734498,118230.0,118220.0,0.68716142]
[1753570265571,0.08734498,118230.0,118220.0,0.67870283]
[1753570265799,0.08734498,118230.0,118220.0,0.68716142]
[1753570266754,0.08734498,118230.0,118220.0,0.67870283]
[1753570267274,0.08734498,118230.0,118220.0,0.68716142]
[1753570267703,0.08734498,118230.0,118220.0,0.67870283]
[1753570268369,0.08734498,118230.0,118220.0,0.68716142]
[1753570269461,0.08536498,118230.0,118220.0,0.68716142]
[1753570269950,0.08536498,118230.0,118220.0,0.67870283]
[1753570270756,0.08536498,118230.0,118220.0,0.68716142]
[1753570271317,0.08536498,118230.0,118220.0,0.67870283]
[1753570271821,0.08536498,118230.0,118220.0,0.68716142]
[1753570273578,0.25452678,118230.0,118220.0,0.66077451]
[1753570273719,0.25452678,118230.0,118220.0,0.6692331]
[1753570276604,0.25452678,118230.0,118220.0,0.67769161]
[1753570276833,0.25452678,118230.0,118220.0,0.6692331]
[1753570278972,0.25452678,118230.0,118220.0,0.67769161]
[1753570279392,0.25452678,118230.0,118220.0,0.6692331]
[1753570279598,0.25452678,118230.0,118220.0,0.68594951]
[1753570280050,0.25452678,118230.0,118220.0,0.69440802]
[1753570280399,0.08536498,118230.0,118220.0,0.69440802]
[1753570283199,0.08536498,118230.0,118220.0,0.70990802]
[1753570284842,0.08536455,118230.0,118220.0,0.70990802]
[1753570285046,0.09382256,118230.0,118220.0,0.71836646]
[1753570285480,0.08536455,118230.0,118220.0,0.71836574]
[1753570285699,0.08536455,118230.0,118220.0,0.72640744]
[1753570286570,0.09382256,118230.0,118220.0,0.72640744]
[1753570287201,0.09382249,118230.0,118220.0,0.72640744]
[1753570288032,0.09382249,118230.0,118220.0,0.71794907]
[1753570289589,0.09382249,118230.0,118220.0,0.72640744]
[1753570289758,0.09382249,118230.0,118220.0,0.71794907]
[1753570289971,0.09382249,118230.0,118220.0,0.72640744]
[1753570290211,0.08536455,118230.0,118220.0,0.72640744]
[1753570291266,0.09382249,118230.0,118220.0,0.72640744]
[1753570291838,0.09382249,118230.0,118220.0,0.71794907]
[1753570292247,0.09382249,118230.0,118220.0,0.72640744]
[1753570292690,0.09382249,118230.0,118220.0,0.71794907]
[1753570293780,0.09382249,118230.0,118220.0,0.72640744]
[1753570293985,0.09382249,118230.0,118220.0,0.71794907]
[1753570294183,0.08536455,118230.0,118220.0,0.71794907]
[1753570294400,0.051,118230.0,118220.0,1.04278838]
[1753570294789,0.051,118230.0,118220.0,0.72640737]
[1753570295447,0.051,118230.0,118220.0,0.41002636]
[1753570295653,0.051,118230.0,118220.0,0.72640737]
[1753570295801,0.05,118230.0,118220.0,0.72740737]
[1753570296201,0.05,118230.0,118220.0,0.72840737]
[1753570297733,0.05,118230.0,118220.0,0.71169096]
[1753570303466,0.05,118230.0,118220.0,0.58245096]
[1753570303675,0.05845744,118230.0,118220.0,0.71157096]
[1753570304095,0.05845744,118230.0,118220.0,0.39518995]
[1753570304326,0.06691502,118230.0,118220.0,0.71157096]
[1753570304549,0.05845758,118230.0,118220.0,0.71157096]
[1753570304760,0.05,118230.0,118220.0,0.71157096]
[1753570304897,0.05845751,118230.0,118220.0,0.71157096]
[1753570307041,0.06691517,118230.0,118220.0,0.71157096]
[1753570307281,0.05845751,118230.0,118220.0,0.71157096]
[1753570308436,0.06691509,118230.0,118220.0,0.71157096]
[1753570312091,0.07537289,118230.0,118220.0,0.71157096]
[1753570312308,0.07537282,118230.0,118220.0,0.71157096]
[1753570312688,0.06691509,118230.0,118220.0,0.71157096]
[1753570314829,0.07537275,118230.0,118220.0,0.71157096]
[1753570315029,0.08383055,118230.0,118220.0,0.71157096]
[1753570315245,0.07537275,118230.0,118220.0,0.71157096]
[1753570315651,0.06691509,118230.0,118220.0,0.71157096]
[1753570315963,0.07537282,118230.0,118220.0,0.71157096]
[1753570316180,0.06691509,118230.0,118220.0,0.71157096]
[1753570317041,0.07537275,118230.0,118220.0,0.71157096]
[1753570317456,0.06691509,118230.0,118220.0,0.71157096]
[1753570318018,0.05845751,118230.0,118220.0,0.71157096]
[1753570318225,0.06691517,118230.0,118220.0,0.71157096]
[1753570320498,0.05,118230.0,118220.0,0.79604826]
[1753570326509,0.05845744,118230.0,118220.0,0.79604826]
[1753570326901,0.05,118230.0,118220.0,0.79604826]
[1753570328724,0.05,118230.0,118220.0,0.71157096]
[1753570333461,0.05,118230.0,118220.0,0.71149096]
[1753570338505,0.05845744,118230.0,118220.0,0.39510995]
[1753570338713,0.06691502,118230.0,118220.0,0.71149096]
[1753570338927,0.05845744,118230.0,118220.0,0.71149096]
[1753570339337,0.05845744,118230.0,118220.0,0.7363833]
[1753570344460,0.06691502,118230.0,118220.0,0.7363833]
[1753570344641,0.05845744,118230.0,118220.0,0.7363833]
[1753570345081,0.06691502,118230.0,118220.0,0.7363833]
[1753570345996,0.05845744,118230.0,118220.0,0.7363833]
[1753570346314,0.06691502,118230.0,118220.0,0.7363833]
[1753570346918,0.06691495,118230.0,118220.0,0.7363833]
[1753570347852,0.05,118230.0,118220.0,0.7363833]
[1753570348308,0.05845758,118230.0,118220.0,0.7363833]
[1753570348762,0.05845751,118230.0,118220.0,0.7363833]
[1753570355753,0.05,118230.0,118220.0,0.7363833]
[1753570356534,0.05845751,118230.0,118220.0,0.7363833]
[1753570357255,0.05,118230.0,118220.0,0.7363833]
[1753570357877,0.05845751,118230.0,118220.0,0.7363833]
[1753570358397,0.05,118230.0,118220.0,0.7363833]
[1753570359029,0.05845751,118230.0,118220.0,0.7363833]
[1753570359874,0.05,118230.0,118220.0,0.7363833]
[1753570360355,0.05845751,118230.0,118220.0,0.7363833]
[1753570360586,0.05,118230.0,118220.0,0.7363833]
[1753570360821,0.05845751,118230.0,118220.0,0.7363833]
[1753570362159,0.05,118230.0,118220.0,0.7363833]
[1753570362469,0.05845751,118230.0,118220.0,0.7363833]
[1753570363463,0.05845751,118230.0,118220.0,0.6073433]
[1753570363693,0.05845751,118230.0,118220.0,0.7363033]
[1753570365425,0.05845751,118230.0,118220.0,0.71141096]
[1753570369930,0.05,118230.0,118220.0,0.71141096]
[1753570370347,0.05845751,118230.0,118220.0,0.71141096]
[1753570371236,0.05845751,118230.0,118220.0,0.39502995]
[1753570371424,0.05845751,118230.0,118220.0,0.71141096]
[1753570371637,0.05845751,118230.0,118220.0,0.79588826]
[1753570373396,0.06691524,118230.0,118220.0,0.71141096]
[1753570373822,0.06691517,118230.0,118220.0,0.36965491]
[1753570374024,0.06691517,118230.0,118220.0,0.71141118]
[1753570374245,0.25497314,118230.0,118220.0,0.36119611]
[1753570374455,0.25497314,118230.0,118220.0,0.66249451]
[1753570374877,0.25497314,118230.0,118220.0,0.03106]
[1753570375086,0.65076677,118230.0,118220.0,0.002]
[1753570375362,0.96714778,118230.0,118220.0,0.13092]
[1753570375984,0.96714778,118230.0,118220.0,0.002]
[1753570376633,0.65076677,118230.0,118220.0,0.002]
[1753570376849,0.96714778,118230.0,118220.0,0.002]
[1753570378543,0.96714778,118230.0,118220.0,0.001]
[1753570378965,0.65176677,118230.0,118220.0,0.001]
[1753570379458,0.19508379,118220.0,118210.0,0.12892]
[1753570379861,0.19706379,118220.0,118210.0,0.12892]
[1753570380322,0.22018379,118220.0,118210.0,0.12892]
[1753570380511,0.02537726,118210.0,118200.0,0.56725594]
[1753570380727,0.02537726,118210.0,118200.0,0.79127311]
[1753570380944,0.02537726,118210.0,118200.0,0.66235311]
[1753570381151,0.02537726,118210.0,118200.0,0.79127311]
[1753570381287,0.02537726,118210.0,118200.0,0.66235311]
[1753570381496,0.02537726,118210.0,118200.0,0.79127311]
[1753570381935,0.02537726,118210.0,118200.0,0.79973291]
[1753570382346,0.02537726,118210.0,118200.0,0.79127311]
[1753570382545,0.03383663,118210.0,118200.0,0.79227311]
[1753570382747,0.03383663,118210.0,118200.0,0.77535329]
[1753570383013,0.03383663,118210.0,118200.0,0.45897228]
[1753570383232,0.04229615,118210.0,118200.0,0.77635329]
[1753570383468,0.04229615,118210.0,118200.0,0.78481324]
[1753570383669,0.04229615,118210.0,118200.0,0.77635329]
[1753570383921,0.03383663,118210.0,118200.0,0.77635329]
[1753570384128,0.03383663,118210.0,118200.0,0.46843215]
[1753570384344,0.03383663,118210.0,118200.0,0.78481316]
[1753570384559,0.02537719,118210.0,118200.0,0.79327289]
[1753570385202,0.00845887,118210.0,118200.0,0.79327289]
[1753570385426,0.01691789,118210.0,118200.0,1.1096539]
[1753570385651,0.02537705,118210.0,118200.0,1.1096539]
[1753570386397,0.01691789,118210.0,118200.0,1.1096539]
[1753570387036,0.00845887,118210.0,118200.0,1.1096539]
[1753570387253,0.01691789,118210.0,118200.0,1.1096539]
[1753570389190,0.02537712,118210.0,118200.0,1.1096539]
[1753570389385,0.02537705,118210.0,118200.0,1.1096539]
[1753570392297,0.03383635,118210.0,118200.0,1.1096539]
[1753570392843,0.02537705,118210.0,118200.0,1.1096539]
[1753570393849,0.03383635,118210.0,118200.0,1.1096539]
[1753570394054,0.02537705,118210.0,118200.0,1.1096539]
[1753570394681,0.03383628,118210.0,118200.0,1.1096539]
[1753570396049,0.02537705,118210.0,118200.0,1.1096539]
[1753570396204,0.03383628,118210.0,118200.0,1.1096539]
[1753570397435,0.03432282,118220.0,118200.0,1.10119367]
[1753570397694,0.05123971,118220.0,118210.0,0.52828032]
[1753570397837,0.05123971,118220.0,118210.0,0.53044032]
[1753570398404,0.05123971,118220.0,118210.0,0.53044039]
[1753570398649,0.05123971,118220.0,118210.0,0.53889976]
[1753570400050,0.05223971,118220.0,118210.0,0.66781976]
[1753570400264,0.05123971,118220.0,118210.0,0.66781976]
[1753570400508,0.05223971,118220.0,118210.0,0.65936039]
[1753570402331,0.05223971,118220.0,118210.0,0.65090095]
[1753570402604,0.05223971,118220.0,118210.0,0.65936039]
[1753570402849,0.21295759,118220.0,118210.0,0.64244143]
[1753570403754,0.21295759,118220.0,118210.0,0.65904143]
[1753570406097,0.21295759,118220.0,118210.0,0.66750095]
[1753570406479,0.20449915,118220.0,118210.0,0.64244143]
[1753570406698,0.20647915,118220.0,118210.0,0.64244143]
[1753570409329,0.19802049,118220.0,118210.0,0.64244143]
[1753570411024,0.19802049,118220.0,118210.0,0.65090095]
[1753570411261,0.19604049,118220.0,118210.0,0.65090095]
[1753570411486,0.19604049,118220.0,118210.0,0.64244143]
[1753570411695,0.19604049,118220.0,118210.0,0.65090095]
[1753570412187,0.19604049,118220.0,118210.0,0.66610095]
[1753570412353,0.19604049,118220.0,118210.0,0.67456039]
[1753570412573,0.19604049,118220.0,118210.0,0.66610095]
[1753570412777,0.19604049,118220.0,118210.0,0.67456039]
[1753570412984,0.19604049,118220.0,118210.0,0.66610095]
[1753570413193,0.19604049,118220.0,118210.0,0.34126042]
[1753570413393,0.19604049,118220.0,118210.0,0.65764143]
[1753570421273,0.19604049,118220.0,118210.0,0.34126042]
[1753570421504,0.19604049,118220.0,118210.0,0.65764143]
[1753570423347,0.19604049,118220.0,118210.0,0.52872143]
[1753570423555,0.19604049,118220.0,118210.0,0.65760143]
[1753570427729,0.19604049,118220.0,118210.0,0.48841101]
[1753570427975,0.19604049,118220.0,118210.0,0.35953101]
[1753570428215,0.22106049,118220.0,118210.0,0.12888]
[1753570428623,0.19509888,118210.0,118200.0,0.54202529]
[1753570428863,0.19509888,118210.0,118200.0,0.67301529]
[1753570429128,0.21201741,118210.0,118200.0,0.68993554]
[1753570429323,0.21201741,118210.0,118200.0,0.68147545]
[1753570429445,0.21201741,118210.0,118200.0,0.68993554]
[1753570429645,0.21201741,118210.0,118200.0,0.68147545]
[1753570429874,0.21201741,118210.0,118200.0,0.68247545]
[1753570430945,0.21201741,118210.0,118200.0,0.69093554]
[1753570431213,0.21201741,118210.0,118200.0,0.69193554]
[1753570431653,0.21201741,118210.0,118200.0,0.68347545]
[1753570432729,0.21201741,118210.0,118200.0,0.68347552]
[1753570432960,0.21201741,118210.0,118200.0,0.69193568]
[1753570433404,0.21201741,118210.0,118200.0,0.68347552]
[1753570434869,0.21201741,118210.0,118200.0,0.69193568]
[1753570435241,0.21201741,118210.0,118200.0,0.70039577]
[1753570436769,0.21201741,118210.0,118200.0,0.70885579]
[1753570438082,0.21201741,118210.0,118200.0,0.70039577]
[1753570438483,0.21201741,118210.0,118200.0,0.70885579]
[1753570439339,0.21201741,118210.0,118200.0,0.38401476]
[1753570439527,0.21201741,118210.0,118200.0,0.70039577]
[1753570440092,0.21201741,118210.0,118200.0,0.70885572]
[1753570440300,0.21201741,118210.0,118200.0,0.70039577]
[1753570440519,0.21201741,118210.0,118200.0,0.70885579]
[1753570441304,0.21201741,118210.0,118200.0,1.03369675]
[1753570441503,0.04282699,118210.0,118200.0,1.03369675]
[1753570441702,0.04282699,118210.0,118200.0,1.02523652]
[1753570442138,0.04282699,118210.0,118200.0,1.01677657]
[1753570442667,0.04282699,118210.0,118200.0,1.02523652]
[1753570443840,0.05128651,118210.0,118200.0,1.02523652]
[1753570444766,0.05128651,118210.0,118200.0,1.01677657]
[1753570444984,0.05128651,118210.0,118200.0,1.02523652]
[1753570445186,0.05128651,118210.0,118200.0,1.00831655]
[1753570445390,0.05128651,118210.0,118200.0,1.01677657]
[1753570445587,0.05128651,118210.0,118200.0,1.00831655]
[1753570445812,0.04282728,118210.0,118200.0,0.69193554]
[1753570446034,0.04282728,118210.0,118200.0,1.00831655]
[1753570446304,0.2035584,118210.0,118200.0,0.69193568]
[1753570446499,0.2035584,118210.0,118200.0,0.68347552]
[1753570446706,0.2035584,118210.0,118200.0,0.69193568]
[1753570446940,0.2035584,118210.0,118200.0,1.00831669]
[1753570447134,0.2035584,118210.0,118200.0,0.69193568]
[1753570448059,0.2035584,118210.0,118200.0,0.67501529]
[1753570448256,0.2035584,118210.0,118200.0,0.36709451]
[1753570448470,0.2035584,118210.0,118200.0,0.35863428]
[1753570448471,0.19509896,118210.0,118200.0,0.35863428]
[1753570448675,0.19509896,118210.0,118200.0,0.67501529]
[1753570448896,0.19509896,118210.0,118200.0,0.68347552]
[1753570449590,0.19509896,118210.0,118200.0,0.69193568]
[1753570450198,0.19509896,118210.0,118200.0,0.38401476]
[1753570450403,0.19509896,118210.0,118200.0,0.70039577]
[1753570450710,0.19509896,118210.0,118200.0,0.69193568]
[1753570451278,0.19509896,118210.0,118200.0,0.70039577]
[1753570451493,0.19509896,118210.0,118200.0,0.69193568]
[1753570451724,0.19509896,118210.0,118200.0,0.36709451]
[1753570451930,0.19509896,118210.0,118200.0,0.68347552]
[1753570452909,0.19509896,118210.0,118200.0,0.70039577]
[1753570453316,0.19509896,118210.0,118200.0,0.69193568]
[1753570454286,0.19509896,118210.0,118200.0,0.67501529]
[1753570454488,0.19509896,118210.0,118200.0,0.68347545]
[1753570454711,0.19509896,118210.0,118200.0,0.35863428]
[1753570454907,0.19509896,118210.0,118200.0,0.68347552]
[1753570455315,0.19509896,118210.0,118200.0,0.70039577]
[1753570455742,0.19509896,118210.0,118200.0,0.69193568]
[1753570455960,0.19509896,118210.0,118200.0,0.70039577]
[1753570456513,0.19509896,118210.0,118200.0,0.38401476]
[1753570456719,0.19509896,118210.0,118200.0,0.69193568]
[1753570457278,0.19509896,118210.0,118200.0,0.70039577]
[1753570457418,0.19509896,118210.0,118200.0,0.74479232]
[1753570458093,0.19509896,118210.0,118200.0,0.73633223]
[1753570458741,0.19509896,118210.0,118200.0,0.74479232]
[1753570459181,0.19509896,118210.0,118200.0,0.73633223]
[1753570459355,0.19509896,118210.0,118200.0,0.74479232]
[1753570460014,0.19509896,118210.0,118200.0,0.75325227]
[1753570460370,0.01691839,118210.0,118200.0,1.06963292]
[1753570460575,0.02537783,118210.0,118200.0,1.07809272]
[1753570461280,0.02537783,118210.0,118200.0,1.06963292]
[1753570461919,0.02537783,118210.0,118200.0,1.07809272]
[1753570462315,0.02537783,118210.0,118200.0,1.06963292]
[1753570462906,0.01691839,118210.0,118200.0,1.06963292]
[1753570463194,0.02537783,118210.0,118200.0,1.07809272]
[1753570463778,0.02537783,118210.0,118200.0,1.06963292]
[1753570464343,0.02537783,118210.0,118200.0,1.07809272]
[1753570465430,0.01691839,118210.0,118200.0,1.07809272]
[1753570465631,0.02537776,118210.0,118200.0,1.07809272]
[1753570466974,0.02537776,118210.0,118200.0,1.07809229]
[1753570467185,0.02537776,118210.0,118200.0,1.06963256]
[1753570468232,0.02537776,118210.0,118200.0,1.07809229]
[1753570468395,0.02537776,118210.0,118200.0,1.06963256]
[1753570468777,0.02537776,118210.0,118200.0,1.07809229]
[1753570469196,0.01691839,118210.0,118200.0,1.07809229]
[1753570470748,0.01691796,118210.0,118200.0,1.07809229]
[1753570470956,0.02537726,118210.0,118200.0,1.07809229]
[1753570473850,0.03383663,118210.0,118200.0,1.07809229]
[1753570479451,0.04229615,118210.0,118200.0,1.06963256]
[1753570479654,0.03383663,118210.0,118200.0,1.06963256]
[1753570479875,0.04229615,118210.0,118200.0,1.06117276]
[1753570480119,0.2030277,118210.0,118200.0,1.01677621]
[1753570481462,0.19456861,118210.0,118200.0,1.00831634]
[1753570484828,0.38973698,118220.0,118210.0,0.18610895]
[1753570485077,0.01691846,118210.0,118200.0,0.54326484]
[1753570485282,0.01691846,118210.0,118200.0,0.67410484]
[1753570485488,0.03383721,118210.0,118200.0,0.67410484]
[1753570485667,0.02537769,118210.0,118200.0,0.69980484]
[1753570486295,0.02537769,118210.0,118200.0,1.01618585]
[1753570486511,0.03383721,118210.0,118200.0,1.02724257]
[1753570487106,0.03383721,118210.0,118200.0,1.02624257]
[1753570488395,0.03383721,118210.0,118200.0,1.02724257]
[1753570488614,0.02537769,118210.0,118200.0,1.02724257]
[1753570489278,0.02537769,118210.0,118200.0,0.39448055]
[1753570489568,0.02537769,118210.0,118200.0,1.01618585]
[1753570492661,0.03383721,118210.0,118200.0,1.00772612]
[1753570493650,0.20302763,118210.0,118200.0,1.00772612]
[1753570495937,0.20302763,118210.0,118200.0,0.3749641]
[1753570496148,0.20302763,118210.0,118200.0,1.00772612]
[1753570498932,0.02537762,118210.0,118200.0,1.01618585]
[1753570500953,0.02537755,118210.0,118200.0,1.10066315]
[1753570501199,0.02537755,118210.0,118200.0,1.01618585]
[1753570502428,0.02537755,118210.0,118200.0,0.3749641]
[1753570502628,0.02537755,118210.0,118200.0,1.00772612]
[1753570502835,0.02537755,118210.0,118200.0,1.01618585]
[1753570503546,0.01691825,118210.0,118200.0,1.01618585]
[1753570503757,0.01691825,118210.0,118200.0,1.10066315]
[1753570505037,0.02537762,118210.0,118200.0,1.10066315]
[1753570505492,0.01691825,118210.0,118200.0,1.10066315]
[1753570507755,0.02537755,118210.0,118200.0,1.10066315]
[1753570514678,0.02537755,118210.0,118200.0,1.01618585]
[1753570515546,0.01691825,118210.0,118200.0,1.01618585]
[1753570517809,0.01691818,118210.0,118200.0,1.01618585]
[1753570519875,0.00845902,118210.0,118200.0,1.01618585]
[1753570520085,0.01691818,118210.0,118200.0,1.01618585]
[1753570520724,0.00845902,118210.0,118200.0,1.01618585]
[1753570520903,0.01691818,118210.0,118200.0,1.01618585]
[1753570523877,0.01691818,118210.0,118200.0,1.10066315]
[1753570532384,0.00845902,118210.0,118200.0,1.10066315]
[1753570532720,0.01691818,118210.0,118200.0,1.10066315]
[1753570532923,0.00845902,118210.0,118200.0,1.10066315]
[1753570533122,0.01691811,118210.0,118200.0,1.10066315]
[1753570535368,0.01691811,118210.0,118200.0,0.97190315]
[1753570535566,0.02537734,118210.0,118200.0,1.10054315]
[1753570536405,0.03383664,118210.0,118200.0,1.01606585]
[1753570537677,0.03383664,118210.0,118200.0,1.00760612]
[1753570538101,0.03383664,118210.0,118200.0,1.01606585]
[1753570540040,0.02537734,118210.0,118200.0,1.01606585]
[1753570540692,0.03383671,118210.0,118200.0,1.01606585]
[1753570541136,0.02537734,118210.0,118200.0,1.01606585]
[1753570545006,0.02537734,118210.0,118200.0,0.69968484]
[1753570545168,0.02537734,118210.0,118200.0,1.01606585]
[1753570548515,0.03383664,118210.0,118200.0,1.01606585]
[1753570549876,0.02537734,118210.0,118200.0,1.01606585]
[1753570552087,0.03383671,118210.0,118200.0,1.00760612]
[1753570552328,0.03383671,118210.0,118200.0,1.01606585]
[1753570552573,0.03383671,118210.0,118200.0,1.00760612]
[1753570552809,0.04229615,118210.0,118200.0,0.3833044]
[1753570553055,0.04229615,118210.0,118200.0,0.87896655]
[1753570553300,0.03383713,118210.0,118200.0,1.02448637]
[1753570554005,0.03383713,118210.0,118200.0,1.0160265]
[1753570554229,0.03383713,118210.0,118200.0,1.02448637]
[1753570555322,0.20553825,118210.0,118200.0,0.02978]
[1753570555574,0.23048825,118210.0,118200.0,0.44698101]
[1753570555795,0.26228825,118210.0,118200.0,0.1306]
[1753570556014,0.60228825,118210.0,118200.0,0.44698101]
[1753570558471,0.60228825,118210.0,118200.0,0.1306]
[1753570558703,0.59382888,118210.0,118200.0,0.44698101]
[1753570558920,0.72242888,118210.0,118200.0,0.44698101]
[1753570559678,0.70712888,118210.0,118200.0,0.44698101]
[1753570559867,0.69062888,118210.0,118200.0,0.61618574]
[1753570560530,0.69062888,118210.0,118200.0,0.63903574]
[1753570560741,0.66567888,118210.0,118200.0,0.64204574]
[1753570561189,0.66567888,118210.0,118200.0,0.64407574]
[1753570563474,0.66567888,118210.0,118200.0,0.32769473]
[1753570563717,0.66567888,118210.0,118200.0,0.64407574]
[1753570570408,0.66567888,118210.0,118200.0,0.32769473]
[1753570570616,0.66567888,118210.0,118200.0,0.64407574]
[1753570575060,0.65721944,118210.0,118200.0,0.64407574]
[1753570577617,0.65721944,118210.0,118200.0,0.65937574]
[1753570584201,0.65721944,118210.0,118200.0,0.17379]
[1753570584480,0.65721944,118210.0,118200.0,0.49017101]
[1753570589924,0.65721944,118210.0,118200.0,0.50577101]
[1753570593766,0.65721944,118210.0,118200.0,0.18939]
[1753570593984,0.65721944,118210.0,118200.0,0.50577101]
[1753570596291,0.65721944,118210.0,118200.0,0.18939]
[1753570596499,0.65721944,118210.0,118200.0,0.50577101]
[1753570599034,0.65721944,118210.0,118200.0,0.18939]
[1753570599236,0.65721944,118210.0,118200.0,0.50577101]
[1753570600633,0.65721944,118210.0,118200.0,0.18939]
[1753570600838,0.65721944,118210.0,118200.0,0.50577101]
[1753570609839,0.65721944,118210.0,118200.0,0.18939]
[1753570610020,0.65721944,118210.0,118200.0,0.50577101]
[1753570612134,0.65721944,118210.0,118200.0,0.18939]
[1753570612349,0.65721944,118210.0,118200.0,0.50577101]
[1753570621117,0.65523944,118210.0,118200.0,0.50577101]
[1753570634429,0.65721944,118210.0,118200.0,0.50577101]
[1753570635401,0.65721944,118210.0,118200.0,0.18939]
[1753570635619,0.65721944,118210.0,118200.0,0.50577101]
[1753570636111,0.65721944,118210.0,118200.0,0.37717101]
[1753570636549,0.65721944,118210.0,118200.0,0.36157101]
[1753570637155,0.65721944,118210.0,118200.0,0.37697101]
[1753570637320,0.72185899,118210.0,118200.0,0.37697101]
[1753570637521,0.65721944,118210.0,118200.0,0.37697101]
[1753570638408,0.99623045,118210.0,118200.0,0.0173]
[1753570638596,0.99623045,118210.0,118200.0,0.002]
[1753570639625,0.99623045,118210.0,118200.0,0.001]
[1753570639824,0.53511384,118200.0,118190.0,0.37646666]
[1753570640038,0.66351384,118200.0,118190.0,0.37858666]
[1753570641543,0.66351384,118200.0,118190.0,0.38058666]
[1753570651576,0.68995384,118200.0,118190.0,0.00214565]
[1753570651752,1.00633485,118200.0,118190.0,0.00114565]
[1753570651892,0.68995384,118200.0,118190.0,0.00114565]
[1753570652308,1.09081215,118200.0,118190.0,0.00114565]